fUST/lending_fUST_20250408
["ID","MTS","AMOUNT","RATE_DAILY","PERIOD"]
[357460334,1744074643693,-500.0,0.00022465,2]
[357460335,1744074643703,-500.0,0.00022465,2]
[357460336,1744074643713,-891.04,0.00022465,2]
[357460337,1744074643722,-500.0,0.00022465,2]
[357460338,1744074643732,-500.0,0.00022465,2]
[357460339,1744074643742,-500.0,0.00022465,2]
[357460340,1744074643752,-500.0,0.00022465,2]
[357460341,1744074643762,-7096.89,0.00022465,2]
[357460343,1744074643772,-500.0,0.00022465,2]
[357460344,1744074643783,-500.0,0.00022465,2]
[357460345,1744074643793,-2020.19,0.00022465,2]
[357460346,1744074643802,-500.0,0.00022465,2]
[357460347,1744074643813,-500.0,0.00022465,2]
[357460348,1744074643823,-673.71,0.00022465,2]
[357460349,1744074643833,-500.0,0.00022465,2]
[357460350,1744074643843,-915.3,0.00022465,2]
[357460351,1744074643852,-1530.39,0.00022465,2]
[357460352,1744074643862,-500.0,0.00022465,2]
[357460353,1744074643872,-1001.26,0.00022465,2]
[357460354,1744074643882,-1779.31,0.00022465,2]
[357460355,1744074643891,-500.0,0.00022465,2]
[357460356,1744074643901,-500.0,0.00022465,2]
[357460357,1744074643911,-500.0,0.00022465,2]
[357460358,1744074643921,-1396.3,0.00022465,2]
[357460359,1744074643931,-500.0,0.00022465,2]
[357460360,1744074643941,-616.77626055,0.00022698,2]
[357460361,1744074643951,-500.0,0.00022739,2]
[357460362,1744074643962,-620.05993684,0.00022739,2]
[357460363,1744074643972,-500.0,0.00022739,2]
[357460364,1744074643981,-500.0,0.00022739,2]
[357460365,1744074643991,-500.0,0.00022739,2]
[357460366,1744074644001,-500.0,0.00022739,2]
[357460367,1744074644011,-500.0,0.00022739,2]
[357460368,1744074644022,-500.0,0.00022739,2]
[357460369,1744074644031,-500.0,0.00022739,2]
[357460371,1744074644041,-500.0,0.00022739,2]
[357460373,1744074644051,-500.0,0.00022739,2]
[357460375,1744074644060,-500.0,0.00022739,2]
[357460377,1744074644070,-500.0,0.00022739,2]
[357460380,1744074644080,-500.0,0.00022739,2]
[357460382,1744074644090,-500.0,0.00022739,2]
[357460384,1744074644100,-500.0,0.00022739,2]
[357460386,1744074644110,-500.0,0.00022739,2]
[357460388,1744074644120,-500.0,0.00022739,2]
[357460390,1744074644130,-500.0,0.00022739,2]
[357460392,1744074644140,-500.0,0.00022739,2]
[357460394,1744074644149,-500.0,0.00022739,2]
[357460396,1744074644159,-500.0,0.00022739,2]
[357460398,1744074644173,-500.0,0.00022739,2]
[357460400,1744074644185,-500.0,0.00022739,2]
[357460403,1744074644251,-500.0,0.00022739,2]
[357460404,1744074644261,-500.0,0.00022739,2]
[357460405,1744074644271,-500.0,0.00022739,2]
[357460406,1744074644281,-500.0,0.00022739,2]
[357460407,1744074644290,-500.0,0.00022739,2]
[357460408,1744074644300,-283.01463211,0.00022739,2]
[357460409,1744074644311,-500.0,0.00022739,2]
[357460410,1744074644321,-500.0,0.00022739,2]
[357460411,1744074644330,-1054.15,0.00022739,2]
[357460412,1744074644339,-500.0,0.00022739,2]
[357460413,1744074644349,-500.0,0.00022739,2]
[357460414,1744074644359,-500.0,0.00022739,2]
[357460415,1744074644369,-565.54,0.00022739,2]
[357460416,1744074644379,-897.24,0.00022739,2]
[357460417,1744074644388,-539.88,0.00022739,2]
[357460418,1744074644397,-500.0,0.00022739,2]
[357460419,1744074644407,-500.0,0.00022739,2]
[357460420,1744074644416,-500.0,0.00022739,2]
[357460421,1744074644426,-898.45,0.00022739,2]
[357460422,1744074644435,-500.0,0.00022739,2]
[357460423,1744074644445,-500.0,0.00022739,2]
[357460424,1744074644456,-500.0,0.00022739,2]
[357460425,1744074644466,-500.0,0.00022739,2]
[357460426,1744074644476,-500.0,0.00022739,2]
[357460427,1744074644487,-500.0,0.00022739,2]
[357460428,1744074644496,-500.0,0.00022739,2]
[357460429,1744074644506,-500.0,0.00022739,2]
[357460430,1744074644515,-500.0,0.00022739,2]
[357460431,1744074644525,-1099.15,0.00022739,2]
[357460432,1744074644536,-500.0,0.00022739,2]
[357460433,1744074644551,-500.0,0.00022739,2]
[357460434,1744074644562,-500.0,0.00022739,2]
[357460435,1744074644572,-644.66156314,0.00022739,2]
[357460436,1744074644583,-621.92,0.00022739,2]
[357460437,1744074644592,-500.0,0.00022739,2]
[357460438,1744074644602,-946.78,0.00022739,2]
[357460439,1744074644611,-500.0,0.00022739,2]
[357460440,1744074644621,-500.0,0.00022739,2]
[357460441,1744074644631,-753.71,0.00022739,2]
[357460442,1744074644640,-500.0,0.00022739,2]
[357460443,1744074644650,-500.0,0.00022739,2]
[357460444,1744074644659,-500.0,0.00022739,2]
[357460445,1744074644669,-500.0,0.00022739,2]
[357460446,1744074644679,-500.0,0.00022739,2]
[357460447,1744074644688,-500.0,0.00022739,2]
[357460448,1744074644697,-500.0,0.00022739,2]
[357460449,1744074644708,-500.0,0.00022739,2]
[357460450,1744074644717,-646.62779272,0.00022739,2]
[357460451,1744074644727,-500.0,0.00022739,2]
[357460452,1744074644737,-500.0,0.00022739,2]
[357460453,1744074644746,-500.0,0.00022739,2]
[357460454,1744074644756,-500.0,0.00022739,2]
[357460455,1744074644766,-518.15661133,0.00022739,2]
[357460456,1744074644776,-500.0,0.00022739,2]
[357460457,1744074644786,-500.0,0.00022739,2]
[357460458,1744074644796,-612.5,0.00022739,2]
[357460459,1744074644805,-500.0,0.00022739,2]
[357460460,1744074644814,-776.13,0.00022739,2]
[357460461,1744074644824,-500.0,0.00022739,2]
[357460462,1744074644833,-616.31,0.00022739,2]
[357460463,1744074644843,-782.19,0.00022739,2]
[357460464,1744074644852,-876.68,0.00022739,2]
[357460465,1744074644862,-500.0,0.00022739,2]
[357460466,1744074644872,-1913.65,0.00022739,2]
[357460467,1744074644881,-500.0,0.00022739,2]
[357460468,1744074644891,-500.0,0.00022739,2]
[357460469,1744074644901,-1363.45,0.00022739,2]
[357460470,1744074644911,-581.13,0.00022739,2]
[357460471,1744074644921,-500.0,0.00022739,2]
[357460472,1744074644930,-500.0,0.00022739,2]
[357460473,1744074644939,-2180.15,0.00022739,2]
[357460474,1744074644949,-500.0,0.00022739,2]
[357460475,1744074644958,-500.0,0.00022739,2]
[357460476,1744074644967,-1056.87,0.00022739,2]
[357460477,1744074644977,-500.0,0.00022739,2]
[357460478,1744074644986,-500.0,0.00022739,2]
[357460479,1744074644996,-500.0,0.00022739,2]
[357460480,1744074645006,-500.0,0.00022739,2]
[357460481,1744074645016,-1638.96,0.00022739,2]
[357460482,1744074645028,-500.0,0.00022739,2]
[357460483,1744074645037,-1826.87,0.00022739,2]
[357460484,1744074645048,-500.0,0.00022739,2]
[357460485,1744074645058,-2187.06,0.00022739,2]
[357460486,1744074645067,-500.0,0.00022739,2]
[357460487,1744074645077,-500.0,0.00022739,2]
[357460488,1744074645087,-1054.98,0.00022739,2]
[357460489,1744074645096,-4072.57,0.00022739,2]
[357460490,1744074645106,-1015.17,0.00022739,2]
[357460491,1744074645116,-500.0,0.00022739,2]
[357460492,1744074645125,-500.0,0.00022739,2]
[357460493,1744074645135,-1010.38,0.00022739,2]
[357460494,1744074645144,-1169.46,0.00022739,2]
[357460495,1744074645154,-606.32,0.00022739,2]
[357460496,1744074645163,-500.0,0.00022739,2]
[357460497,1744074645172,-500.0,0.00022739,2]
[357460498,1744074645181,-1032.96,0.00022739,2]
[357460499,1744074645191,-500.0,0.00022739,2]
[357460500,1744074645201,-500.0,0.00022739,2]
[357460501,1744074645210,-500.0,0.00022739,2]
[357460502,1744074645220,-500.0,0.00022739,2]
[357460503,1744074645230,-996.48,0.00022739,2]
[357460504,1744074645244,-500.0,0.00022739,2]
[357460505,1744074645254,-668.21,0.00022739,2]
[357460506,1744074645263,-500.0,0.00022739,2]
[357460507,1744074645272,-843.03,0.00022739,2]
[357460508,1744074645282,-500.0,0.00022739,2]
[357460509,1744074645292,-612.83,0.00022739,2]
[357460510,1744074645301,-1371.06,0.00022739,2]
[357460511,1744074645311,-500.0,0.00022739,2]
[357460512,1744074645322,-500.0,0.00022739,2]
[357460513,1744074645331,-370.35738389,0.00022739,2]
[357460514,1744074645341,-1453.16,0.00022739,2]
[357460515,1744074645350,-500.0,0.00022739,2]
[357460516,1744074645359,-500.0,0.00022739,2]
[357460517,1744074645368,-500.0,0.00022739,2]
[357460518,1744074645378,-2298.95,0.00022739,2]
[357460519,1744074645387,-500.0,0.00022739,2]
[357460520,1744074645396,-643.21597122,0.00022739,2]
[357460521,1744074645407,-500.0,0.00022739,2]
[357460522,1744074645416,-500.0,0.00022739,2]
[357460523,1744074645425,-500.0,0.00022739,2]
[357460524,1744074645434,-1238.16,0.00022739,2]
[357460525,1744074645444,-500.0,0.00022739,2]
[357460526,1744074645453,-1561.47,0.00022739,2]
[357460527,1744074645463,-500.0,0.00022739,2]
[357460528,1744074645472,-500.0,0.00022739,2]
[357460529,1744074645481,-500.0,0.00022739,2]
[357460530,1744074645490,-500.0,0.00022739,2]
[357460531,1744074645499,-1480.25,0.00022739,2]
[357460532,1744074645509,-500.0,0.00022739,2]
[357460533,1744074645518,-500.0,0.00022739,2]
[357460534,1744074645527,-500.0,0.00022739,2]
[357460535,1744074645537,-954.42,0.00022739,2]
[357460536,1744074645546,-1158.68,0.00022739,2]
[357460537,1744074645555,-500.0,0.00022739,2]
[357460538,1744074645564,-935.67,0.00022739,2]
[357460539,1744074645573,-981.04,0.00022739,2]
[357460540,1744074645583,-500.0,0.00022739,2]
[357460541,1744074645592,-1117.62,0.00022739,2]
[357460542,1744074645601,-500.0,0.00022739,2]
[357460543,1744074645610,-500.0,0.00022739,2]
[357460544,1744074645619,-500.0,0.00022739,2]
[357460545,1744074645628,-366.6766531,0.00022739,2]
[357460546,1744074645638,-500.0,0.00022739,2]
[357460547,1744074645647,-500.0,0.00022739,2]
[357460548,1744074645656,-500.0,0.00022739,2]
[357460549,1744074645666,-500.0,0.00022739,2]
[357460550,1744074645675,-891.04,0.00022739,2]
[357460551,1744074645685,-500.0,0.00022739,2]
[357460552,1744074645694,-500.0,0.00022739,2]
[357460553,1744074645704,-500.0,0.00022739,2]
[357460554,1744074645713,-500.0,0.00022739,2]
[357460555,1744074645722,-7096.89,0.00022739,2]
[357460556,1744074645732,-500.0,0.00022739,2]
[357460557,1744074645741,-500.0,0.00022739,2]
[357460558,1744074645751,-2020.19,0.00022739,2]
[357460559,1744074645761,-500.0,0.00022739,2]
[357460560,1744074645770,-500.0,0.00022739,2]
[357460561,1744074645780,-673.71,0.00022739,2]
[357460562,1744074645789,-500.0,0.00022739,2]
[357460563,1744074645798,-915.3,0.00022739,2]
[357460564,1744074645808,-1530.39,0.00022739,2]
[357460565,1744074645818,-500.0,0.00022739,2]
[357460566,1744074645827,-1001.26,0.00022739,2]
[357460567,1744074645837,-1779.31,0.00022739,2]
[357460568,1744074645847,-500.0,0.00022739,2]
[357460569,1744074645856,-500.0,0.00022739,2]
[357460570,1744074645865,-500.0,0.00022739,2]
[357460571,1744074645875,-1396.3,0.00022739,2]
[357460572,1744074645885,-500.0,0.00022739,2]
[357460573,1744074645895,-285.89543412,0.00023013,2]
[357460574,1744074645904,-373.20306383,0.00023013,2]
[357460575,1744074645914,-500.0,0.00023013,2]
[357460576,1744074645923,-500.0,0.00023013,2]
[357460577,1744074645932,-500.0,0.00023013,2]
[357460578,1744074645942,-500.0,0.00023013,2]
[357460579,1744074645952,-500.0,0.00023013,2]
[357460580,1744074645962,-500.0,0.00023013,2]
[357460581,1744074645972,-500.0,0.00023013,2]
[357460582,1744074645982,-500.0,0.00023013,2]
[357460583,1744074645991,-500.0,0.00023013,2]
[357460584,1744074646001,-500.0,0.00023013,2]
[357460586,1744074646010,-500.0,0.00023013,2]
[357460588,1744074646019,-318.10834623,0.00023013,2]
[357460590,1744074646030,-500.0,0.00023013,2]
[357460591,1744074646039,-500.0,0.00023013,2]
[357460592,1744074646049,-500.0,0.00023013,2]
[357460593,1744074646058,-500.0,0.00023013,2]
[357460594,1744074646067,-500.0,0.00023013,2]
[357460595,1744074646077,-500.0,0.00023013,2]
[357460596,1744074646086,-500.0,0.00023013,2]
[357460597,1744074646096,-500.0,0.00023013,2]
[357460598,1744074646106,-500.0,0.00023013,2]
[357460599,1744074646115,-500.0,0.00023013,2]
[357460600,1744074646124,-500.0,0.00023013,2]
[357460601,1744074646134,-500.0,0.00023013,2]
[357460602,1744074646143,-500.0,0.00023013,2]
[357460603,1744074646153,-500.0,0.00023013,2]
[357460604,1744074646161,-500.0,0.00023013,2]
[357460605,1744074646171,-500.0,0.00023013,2]
[357460606,1744074646180,-1054.15,0.00023013,2]
[357460607,1744074646189,-500.0,0.00023013,2]
[357460608,1744074646199,-500.0,0.00023013,2]
[357460609,1744074646209,-500.0,0.00023013,2]
[357460611,1744074646220,-565.54,0.00023013,2]
[357460612,1744074646229,-897.24,0.00023013,2]
[357460613,1744074646240,-539.88,0.00023013,2]
[357460614,1744074646250,-500.0,0.00023013,2]
[357460615,1744074646259,-500.0,0.00023013,2]
[357460616,1744074646269,-517.13835951,0.00023013,2]
[357460617,1744074646279,-898.45,0.00023013,2]
[357460618,1744074646288,-500.0,0.00023013,2]
[357460619,1744074646298,-500.0,0.00023013,2]
[357460620,1744074646308,-581.04462348,0.00023013,2]
[357460621,1744074646318,-500.0,0.00023013,2]
[357460622,1744074646328,-500.0,0.00023013,2]
[357460623,1744074646338,-500.0,0.00023013,2]
[357460624,1744074646347,-500.0,0.00023013,2]
[357460625,1744074646357,-500.0,0.00023013,2]
[357460626,1744074646366,-500.0,0.00023013,2]
[357460627,1744074646375,-1099.15,0.00023013,2]
[357460628,1744074646384,-500.0,0.00023013,2]
[357460629,1744074646394,-500.0,0.00023013,2]
[357460630,1744074646403,-500.0,0.00023013,2]
[357460631,1744074646412,-621.92,0.00023013,2]
[357460632,1744074646421,-500.0,0.00023013,2]
[357460633,1744074646431,-946.78,0.00023013,2]
[357460634,1744074646440,-500.0,0.00023013,2]
[357460635,1744074646450,-500.0,0.00023013,2]
[357460636,1744074646460,-753.71,0.00023013,2]
[357460637,1744074646469,-500.0,0.00023013,2]
[357460638,1744074646479,-500.0,0.00023013,2]
[357460639,1744074646489,-500.0,0.00023013,2]
[357460640,1744074646499,-500.0,0.00023013,2]
[357460641,1744074646508,-500.0,0.00023013,2]
[357460642,1744074646518,-500.0,0.00023013,2]
[357460643,1744074646527,-451.35633254,0.00023013,2]
[357460644,1744074646537,-500.0,0.00023013,2]
[357460646,1744074646546,-500.0,0.00023013,2]
[357460648,1744074646555,-500.0,0.00023013,2]
[357460650,1744074646565,-500.0,0.00023013,2]
[357460651,1744074646574,-452.5003599,0.00023013,2]
[357460652,1744074646583,-500.0,0.00023013,2]
[357460653,1744074646593,-500.0,0.00023013,2]
[357460655,1744074646603,-612.5,0.00023013,2]
[357460657,1744074646613,-500.0,0.00023013,2]
[357460658,1744074646623,-776.13,0.00023013,2]
[357460660,1744074646634,-500.0,0.00023013,2]
[357460662,1744074646646,-616.31,0.00023013,2]
[357460664,1744074646656,-782.19,0.00023013,2]
[357460666,1744074646666,-876.68,0.00023013,2]
[357460667,1744074646675,-500.0,0.00023013,2]
[357460669,1744074646685,-1913.65,0.00023013,2]
[357460671,1744074646694,-500.0,0.00023013,2]
[357460673,1744074646703,-500.0,0.00023013,2]
[357460675,1744074646714,-1363.45,0.00023013,2]
[357460676,1744074646724,-581.13,0.00023013,2]
[357460677,1744074646733,-500.0,0.00023013,2]
[357460678,1744074646743,-500.0,0.00023013,2]
[357460679,1744074646753,-2180.15,0.00023013,2]
[357460680,1744074646763,-500.0,0.00023013,2]
[357460681,1744074646774,-500.0,0.00023013,2]
[357460682,1744074646785,-1056.87,0.00023013,2]
[357460683,1744074646797,-500.0,0.00023013,2]
[357460684,1744074646807,-500.0,0.00023013,2]
[357460685,1744074646818,-500.0,0.00023013,2]
[357460686,1744074646828,-500.0,0.00023013,2]
[357460687,1744074646838,-1638.96,0.00023013,2]
[357460688,1744074646849,-500.0,0.00023013,2]
[357460689,1744074646859,-1826.87,0.00023013,2]
[357460690,1744074646868,-500.0,0.00023013,2]
[357460691,1744074646879,-2187.06,0.00023013,2]
[357460692,1744074646888,-500.0,0.00023013,2]
[357460693,1744074646899,-500.0,0.00023013,2]
[357460694,1744074646914,-1054.98,0.00023013,2]
[357460695,1744074646928,-1015.17,0.00023013,2]
[357460696,1744074646942,-4072.57,0.00023013,2]
[357460697,1744074646956,-500.0,0.00023013,2]
[357460698,1744074646967,-500.0,0.00023013,2]
[357460699,1744074646979,-1010.38,0.00023013,2]
[357460700,1744074646990,-1169.46,0.00023013,2]
[357460701,1744074647000,-606.32,0.00023013,2]
[357460702,1744074647011,-500.0,0.00023013,2]
[357460703,1744074647021,-606.48186469,0.00023013,2]
[357460704,1744074647032,-1032.96,0.00023013,2]
[357460705,1744074647044,-500.0,0.00023013,2]
[357460706,1744074647056,-500.0,0.00023013,2]
[357460707,1744074647067,-500.0,0.00023013,2]
[357460708,1744074647078,-500.0,0.00023013,2]
[357460709,1744074647087,-996.48,0.00023013,2]
[357460710,1744074647098,-500.0,0.00023013,2]
[357460711,1744074647108,-668.21,0.00023013,2]
[357460712,1744074647119,-500.0,0.00023013,2]
[357460713,1744074647130,-843.03,0.00023013,2]
[357460714,1744074647140,-500.0,0.00023013,2]
[357460715,1744074647150,-612.83,0.00023013,2]
[357460716,1744074647161,-1371.06,0.00023013,2]
[357460717,1744074647171,-500.0,0.00023013,2]
[357460718,1744074647181,-500.0,0.00023013,2]
[357460719,1744074647190,-1453.16,0.00023013,2]
[357460720,1744074647200,-500.0,0.00023013,2]
[357460721,1744074647210,-500.0,0.00023013,2]
[357460722,1744074647219,-500.0,0.00023013,2]
[357460723,1744074647230,-2298.95,0.00023013,2]
[357460724,1744074647242,-500.0,0.00023013,2]
[357460725,1744074647252,-500.0,0.00023013,2]
[357460726,1744074647262,-500.0,0.00023013,2]
[357460727,1744074647271,-500.0,0.00023013,2]
[357460728,1744074647282,-1238.16,0.00023013,2]
[357460729,1744074647292,-500.0,0.00023013,2]
[357460730,1744074647302,-1561.47,0.00023013,2]
[357460731,1744074647312,-500.0,0.00023013,2]
[357460732,1744074647324,-500.0,0.00023013,2]
[357460733,1744074647333,-500.0,0.00023013,2]
[357460734,1744074647347,-500.0,0.00023013,2]
[357460735,1744074647358,-1480.25,0.00023013,2]
[357460736,1744074647368,-500.0,0.00023013,2]
[357460737,1744074647378,-500.0,0.00023013,2]
[357460738,1744074647388,-500.0,0.00023013,2]
[357460739,1744074647398,-954.42,0.00023013,2]
[357460740,1744074647408,-1158.68,0.00023013,2]
[357460741,1744074647417,-500.0,0.00023013,2]
[357460742,1744074647427,-935.67,0.00023013,2]
[357460743,1744074647437,-981.04,0.00023013,2]
[357460744,1744074647446,-500.0,0.00023013,2]
[357460745,1744074647456,-1117.62,0.00023013,2]
[357460746,1744074647466,-404.72943887,0.00023013,2]
[357460747,1744074647476,-629.10003969,0.00023013,2]
[357460748,1744074647486,-500.0,0.00023013,2]
[357460749,1744074647495,-500.0,0.00023013,2]
[357460750,1744074647506,-500.0,0.00023013,2]
[357460751,1744074647516,-500.0,0.00023013,2]
[357460752,1744074647527,-500.0,0.00023013,2]
[357460753,1744074647536,-891.04,0.00023013,2]
[357460754,1744074647546,-500.0,0.00023013,2]
[357460755,1744074647556,-500.0,0.00023013,2]
[357460756,1744074647566,-500.0,0.00023013,2]
[357460757,1744074647576,-500.0,0.00023013,2]
[357460758,1744074647586,-7096.89,0.00023013,2]
[357460759,1744074647596,-500.0,0.00023013,2]
[357460760,1744074647606,-500.0,0.00023013,2]
[357460761,1744074647616,-2020.19,0.00023013,2]
[357460762,1744074647626,-500.0,0.00023013,2]
[357460763,1744074647636,-500.0,0.00023013,2]
[357460764,1744074647646,-673.71,0.00023013,2]
[357460765,1744074647656,-500.0,0.00023013,2]
[357460766,1744074647667,-915.3,0.00023013,2]
[357460767,1744074647677,-1530.39,0.00023013,2]
[357460768,1744074647687,-500.0,0.00023013,2]
[357460769,1744074647697,-1001.26,0.00023013,2]
[357460770,1744074647707,-1779.31,0.00023013,2]
[357460771,1744074647716,-500.0,0.00023013,2]
[357460772,1744074647727,-500.0,0.00023013,2]
[357460773,1744074647737,-500.0,0.00023013,2]
[357460774,1744074647747,-1396.3,0.00023013,2]
[357460775,1744074647756,-500.0,0.00023013,2]
[357460776,1744074647767,-15706.36884371,0.00023053,2]
[357460777,1744074647776,-500.0,0.00023073,2]
[357460778,1744074647786,-500.0,0.00023073,2]
[357460779,1744074647796,-510.21411177,0.00023073,2]
[357460780,1744074647806,-500.88238115,0.00023073,2]
[357460781,1744074647822,-500.0,0.00023073,2]
[357460782,1744074647835,-501.7795802,0.00023073,2]
[357460783,1744074647845,-608.20003467,0.00023073,2]
[357460784,1744074647855,-500.0,0.00023073,2]
[357460785,1744074647865,-552.1369423,0.00023073,2]
[357460786,1744074647876,-500.0,0.00023073,2]
[357460787,1744074647887,-500.0,0.00023073,2]
[357460788,1744074647898,-602.41643275,0.00023073,2]
[357460789,1744074647910,-500.0,0.00023073,2]
[357460790,1744074647921,-500.41012459,0.00023073,2]
[357460791,1744074647932,-500.0,0.00023073,2]
[357460792,1744074647943,-500.10574077,0.00023073,2]
[357460793,1744074647954,-254.91781883,0.00023073,2]
[357460794,1744074647966,-500.0,0.00023073,2]
[357460795,1744074647976,-500.0,0.00023073,2]
[357460796,1744074647986,-500.98790136,0.00023073,2]
[357460797,1744074647996,-500.0,0.00023073,2]
[357460798,1744074648006,-301.20596459,0.00023073,2]
[357460799,1744074648016,-300.16309143,0.00023073,2]
[357460800,1744074648026,-500.0,0.00023073,2]
[357460801,1744074648037,-649.83885374,0.00023134,2]
[357460802,1744074648048,-500.0,0.00023287,2]
[357460803,1744074648059,-500.0,0.00023287,2]
[357460804,1744074648070,-500.0,0.00023287,2]
[357460805,1744074648080,-500.0,0.00023287,2]
[357460806,1744074648090,-500.0,0.00023287,2]
[357460807,1744074648102,-500.0,0.00023287,2]
[357460808,1744074648113,-200.0,0.00023287,2]
[357460809,1744074648123,-500.0,0.00023287,2]
[357460810,1744074648134,-500.0,0.00023287,2]
[357460811,1744074648144,-500.0,0.00023287,2]
[357460812,1744074648155,-500.0,0.00023287,2]
[357460813,1744074648166,-500.0,0.00023287,2]
[357460814,1744074648176,-500.0,0.00023287,2]
[357460815,1744074648187,-500.0,0.00023287,2]
[357460816,1744074648196,-500.0,0.00023287,2]
[357460817,1744074648207,-500.0,0.00023287,2]
[357460818,1744074648217,-500.0,0.00023287,2]
[357460819,1744074648227,-500.0,0.00023287,2]
[357460820,1744074648238,-500.0,0.00023287,2]
[357460821,1744074648249,-500.0,0.00023287,2]
[357460822,1744074648259,-500.0,0.00023287,2]
[357460823,1744074648269,-500.0,0.00023287,2]
[357460824,1744074648281,-500.0,0.00023287,2]
[357460825,1744074648290,-500.0,0.00023287,2]
[357460826,1744074648300,-500.0,0.00023287,2]
[357460827,1744074648311,-500.0,0.00023287,2]
[357460828,1744074648322,-500.0,0.00023287,2]
[357460829,1744074648332,-500.0,0.00023287,2]
[357460830,1744074648342,-1054.15,0.00023287,2]
[357460831,1744074648352,-526.27630408,0.00023287,2]
[357460832,1744074648363,-500.0,0.00023287,2]
[357460833,1744074648374,-500.0,0.00023287,2]
[357460834,1744074648384,-565.54,0.00023287,2]
[357460835,1744074648394,-897.24,0.00023287,2]
[357460836,1744074648404,-539.88,0.00023287,2]
[357460837,1744074648415,-616.56551254,0.00023287,2]
[357460838,1744074648424,-500.0,0.00023287,2]
[357460839,1744074648435,-898.45,0.00023287,2]
[357460840,1744074648445,-500.0,0.00023287,2]
[357460841,1744074648455,-620.21302781,0.00023287,2]
[357460842,1744074648465,-500.0,0.00023287,2]
[357460843,1744074648476,-500.0,0.00023287,2]
[357460844,1744074648486,-500.0,0.00023287,2]
[357460845,1744074648496,-500.0,0.00023287,2]
[357460846,1744074648507,-500.0,0.00023287,2]
[357460847,1744074648517,-316.49084299,0.00023287,2]
[357460848,1744074648527,-1099.15,0.00023287,2]
[357460849,1744074648538,-500.0,0.00023287,2]
[357460850,1744074648549,-500.0,0.00023287,2]
[357460851,1744074648559,-500.0,0.00023287,2]
[357460852,1744074648570,-621.92,0.00023287,2]
[357460853,1744074648580,-500.0,0.00023287,2]
[357460854,1744074648591,-946.78,0.00023287,2]
[357460855,1744074648602,-500.0,0.00023287,2]
[357460856,1744074648612,-500.0,0.00023287,2]
[357460857,1744074648623,-753.71,0.00023287,2]
[357460858,1744074648634,-500.0,0.00023287,2]
[357460859,1744074648644,-500.0,0.00023287,2]
[357460860,1744074648656,-204.98038133,0.00023287,2]
[357460861,1744074648667,-500.0,0.00023287,2]
[357460862,1744074648678,-500.0,0.00023287,2]
[357460863,1744074648688,-500.0,0.00023287,2]
[357460864,1744074648699,-500.0,0.00023287,2]
[357460865,1744074648710,-500.0,0.00023287,2]
[357460866,1744074648721,-500.0,0.00023287,2]
[357460867,1744074648733,-500.0,0.00023287,2]
[357460868,1744074648744,-500.0,0.00023287,2]
[357460869,1744074648756,-500.0,0.00023287,2]